bitfinex-derivatives/quotes_BTCF0:USTF0_20250329
["timestamp","ask_amount","ask_price","bid_price","bid_amount"]
[1743237823262,0.5454436,83874.0,83873.0,0.1202851]
[1743237827764,0.5454436,83874.0,83873.0,0.1832851]
[1743237827972,0.42616,83874.0,83873.0,0.1832851]
[1743237828264,0.5454436,83874.0,83873.0,0.2732851]
[1743237837171,0.1846436,83874.0,83873.0,0.2732851]
[1743237837472,0.5454436,83874.0,83873.0,0.2732851]
[1743237838664,0.1846436,83874.0,83873.0,0.2732851]
[1743237838975,0.5454436,83874.0,83873.0,0.2732851]
[1743237840067,0.1846436,83874.0,83873.0,0.2732851]
[1743237840574,0.5454436,83874.0,83873.0,0.2732851]
[1743237841769,0.5454436,83874.0,83873.0,0.1832851]
[1743237846374,0.9062436,83874.0,83873.0,0.1832851]
[1743237848077,0.9062436,83874.0,83873.0,0.1520851]
[1743237851582,0.9062436,83874.0,83873.0,0.1851851]
[1743237854378,0.9062436,83874.0,83873.0,0.3151851]
[1743237855182,0.5454436,83874.0,83873.0,0.3151851]
[1743237857385,0.65271551,83874.0,83873.0,0.3151851]
[1743237858496,0.46983191,83874.0,83873.0,0.3151851]
[1743237858785,0.14283274,83878.0,83877.0,0.1192794]
[1743237859002,0.14407275,83878.0,83877.0,0.3898794]
[1743237859184,0.14407275,83878.0,83877.0,1.8898794]
[1743237859392,0.14283274,83878.0,83877.0,1.8898794]
[1743237859587,0.14283274,83878.0,83877.0,2.00209484]
[1743237860388,0.14283274,83878.0,83877.0,1.9542794]
[1743237860985,0.1789049,83884.0,83883.0,0.1192708]
[1743237861184,0.1789049,83884.0,83883.0,0.3498708]
[1743237861394,0.1801849,83884.0,83883.0,0.3498708]
[1743237861600,0.1801849,83884.0,83883.0,0.4117708]
[1743237862694,0.1821849,83884.0,83883.0,0.4117708]
[1743237862895,0.00328,83884.0,83883.0,0.42353279]
[1743237863091,0.002,83884.0,83883.0,0.42353279]
[1743237863796,0.14283274,83890.0,83887.0,0.1192652]
[1743237863998,0.14283274,83890.0,83887.0,0.41763283]
[1743237864396,0.14283274,83890.0,83887.0,0.3698652]
[1743237864583,0.32957252,83902.0,83887.0,0.3698652]
[1743237864584,0.14283274,83896.0,83887.0,0.4337652]
[1743237864989,0.00517879,83888.0,83887.0,0.47310044]
[1743237865993,0.00517879,83888.0,83887.0,0.4337652]
[1743237867289,0.00517879,83888.0,83887.0,0.7945652]
[1743237868600,0.00517879,83888.0,83887.0,0.4337652]
[1743237868798,0.00517879,83888.0,83887.0,0.7945652]
[1743237871687,0.00517879,83888.0,83887.0,0.4337652]
[1743237871893,0.00517879,83888.0,83887.0,0.7945652]
[1743237874400,0.00517879,83888.0,83887.0,0.4337652]
[1743237874701,0.00517879,83888.0,83887.0,0.7945652]
[1743237879602,0.00517879,83888.0,83887.0,0.4337652]
[1743237879795,0.00517879,83888.0,83887.0,0.7945652]
[1743237881600,0.00517879,83888.0,83887.0,0.4337652]
[1743237881901,0.00517879,83888.0,83887.0,0.7945652]
[1743237882702,0.00517879,83888.0,83887.0,0.4337652]
[1743237882902,0.00517879,83888.0,83887.0,0.7945652]
[1743237883090,0.12444249,83888.0,83887.0,0.7638652]
[1743237883894,0.21844249,83888.0,83887.0,0.7638652]
[1743237884699,0.21972249,83888.0,83887.0,0.4030652]
[1743237885095,0.21972249,83888.0,83887.0,0.7638652]
[1743237888895,0.21972249,83888.0,83887.0,0.97680463]
[1743237889105,0.21844249,83888.0,83887.0,0.97680463]
[1743237889705,0.21844249,83888.0,83887.0,0.61600463]
[1743237890001,0.2196825,83888.0,83887.0,0.97680463]
[1743237890208,0.21844249,83888.0,83887.0,0.97680463]
[1743237890607,0.21844249,83888.0,83887.0,0.21353943]
[1743237890798,0.21972249,83888.0,83887.0,0.21353943]
[1743237893409,0.21972249,83888.0,83887.0,0.0006]
[1743237893605,0.1192737,83881.0,83880.0,0.059637]
[1743237893803,0.2351937,83881.0,83880.0,0.060237]
[1743237894212,0.5959937,83881.0,83880.0,0.060237]
[1743237894415,0.6283937,83881.0,83880.0,0.060237]
[1743237894707,0.6606937,83881.0,83880.0,0.060237]
[1743237894913,0.6616937,83881.0,83880.0,0.060237]
[1743237895103,0.3008937,83881.0,83880.0,0.060237]
[1743237895304,0.6616937,83881.0,83880.0,0.060237]
[1743237895507,0.6626937,83881.0,83880.0,0.060237]
[1743237895705,0.67488257,83881.0,83880.0,0.060237]
[1743237895907,0.6626937,83881.0,83880.0,0.060237]
[1743237896505,0.6626937,83881.0,83880.0,0.059637]
[1743237897410,0.3018937,83881.0,83880.0,0.059637]
[1743237897612,0.6626937,83881.0,83880.0,0.060237]
[1743237898513,0.3018937,83881.0,83880.0,0.060237]
[1743237898714,0.6626937,83881.0,83880.0,0.060237]
[1743237900720,0.3018937,83881.0,83880.0,0.060237]
[1743237900906,0.6626937,83881.0,83880.0,0.060237]
[1743237903720,0.6626937,83881.0,83880.0,0.090237]
[1743237906823,0.6626937,83881.0,83880.0,0.122037]
[1743237907529,0.3018937,83881.0,83880.0,0.122037]
[1743237907730,0.6626937,83881.0,83880.0,0.122037]
[1743237908629,0.3018937,83881.0,83880.0,0.122037]
[1743237908929,0.6626937,83881.0,83880.0,0.122037]
[1743237909426,0.3018937,83881.0,83880.0,0.122037]
[1743237910518,0.1872537,83881.0,83880.0,0.122037]
[1743237911426,0.3018937,83881.0,83880.0,0.122037]
[1743237915846,0.00328,83881.0,83880.0,0.122037]
[1743237916044,0.002,83881.0,83880.0,0.382037]
[1743237916843,0.002,83881.0,83880.0,1.882037]
[1743237917039,0.00017879,83888.0,83887.0,0.1192652]
[1743237917240,0.0014188,83888.0,83887.0,0.3898652]
[1743237917446,0.00145879,83888.0,83887.0,0.3898652]
[1743237917745,0.00017879,83888.0,83887.0,0.4526652]
[1743237918549,0.0044188,83888.0,83887.0,0.4526652]
[1743237920434,0.00317879,83888.0,83887.0,0.4526652]
[1743237920644,0.00445879,83888.0,83887.0,0.4526652]
[1743237921157,0.12372249,83888.0,83887.0,0.4526652]
[1743237921451,0.15392249,83888.0,83887.0,0.4526652]
[1743237923150,0.03337879,83888.0,83887.0,0.4526652]
[1743237924946,0.0346188,83888.0,83887.0,0.4526652]
[1743237925145,0.03337879,83888.0,83887.0,0.4526652]
[1743237926143,0.00317879,83888.0,83887.0,0.4526652]
[1743237930755,0.00317879,83888.0,83887.0,0.4857652]
[1743237932943,9e-08,83888.0,83887.0,0.8465652]
[1743237934158,9e-08,83888.0,83887.0,2.3465652]
[1743237934548,0.0304,83904.0,83903.0,0.1192424]
[1743237934750,0.0318,83913.0,83908.0,0.1192353]
[1743237934956,0.14415274,83909.0,83908.0,0.4005553]
[1743237935547,0.14415274,83909.0,83908.0,0.4661553]
[1743237936149,0.17605274,83909.0,83908.0,0.4661553]
[1743237936555,0.14415274,83909.0,83908.0,0.4661553]
[1743237937658,0.14415274,83909.0,83908.0,0.47784524]
[1743237938653,0.00132,83909.0,83908.0,0.47784524]
[1743237938852,0.0301,83913.0,83912.0,0.1192296]
[1743237939058,0.03134001,83913.0,83912.0,0.3798296]
[1743237939650,0.03134001,83913.0,83912.0,0.4422296]
[1743237939853,0.06384001,83913.0,83912.0,0.4422296]
[1743237941653,0.18306821,83913.0,83912.0,0.4422296]
[1743237942354,0.06384001,83913.0,83912.0,0.4422296]
[1743237943160,0.06384001,83913.0,83912.0,0.45101137]
[1743237945462,0.18306821,83913.0,83912.0,0.45101137]
[1743237948363,0.06384001,83913.0,83912.0,0.45101137]
[1743237949663,0.18306821,83913.0,83912.0,0.45101137]
[1743237950962,0.1818282,83913.0,83912.0,0.45101137]
[1743237951974,0.18306821,83913.0,83912.0,0.45101137]
[1743237952473,0.0626,83913.0,83912.0,0.45101137]
[1743237960377,0.1818282,83913.0,83912.0,0.45101137]
[1743237960678,0.0626,83913.0,83912.0,0.45101137]
[1743237961972,0.1818282,83913.0,83912.0,0.45101137]
[1743237963174,0.0626,83913.0,83912.0,0.45101137]
[1743237967997,0.06388,83913.0,83912.0,0.45101137]
[1743237969200,0.00128,83913.0,83912.0,0.45101137]
[1743237969396,0.0333,83919.0,83918.0,0.1192211]
[1743237969699,0.14407275,83921.0,83920.0,0.1192183]
[1743237969900,0.14407275,83921.0,83920.0,0.3698183]
[1743237970097,0.14283274,83921.0,83920.0,0.3698183]
[1743237970291,0.14283274,83921.0,83920.0,0.4353183]
[1743237971301,0.1192141,83923.0,83922.0,0.1788197]
[1743237971497,0.1192141,83923.0,83922.0,0.5049197]
[1743237971803,0.1192141,83923.0,83922.0,0.1257071]
[1743237972004,0.1192141,83923.0,83922.0,0.0006]
[1743237972005,0.12045411,83923.0,83922.0,0.0006]
[1743237972503,0.18275411,83923.0,83922.0,0.0006]
[1743237973197,0.18275411,83923.0,83922.0,0.1198154]
[1743237974301,0.18275411,83923.0,83922.0,0.0006]
[1743237974501,0.29731411,83923.0,83922.0,0.0006]
[1743237975000,0.29731411,83923.0,83922.0,0.1198154]
[1743237977403,0.44031029,83923.0,83922.0,0.1198154]
[1743237981801,0.44031029,83923.0,83922.0,0.1525154]
[1743237982396,0.44031029,83923.0,83922.0,0.0006]
[1743237982791,0.1192197,83919.0,83918.0,0.21365327]
[1743237982998,0.1192254,83915.0,83914.0,0.28487103]
[1743237983306,0.1192254,83915.0,83914.0,0.28635103]
[1743237983307,0.4814654,83915.0,83914.0,0.28635103]
[1743237984008,0.519488,83915.0,83914.0,0.28635103]
[1743237984694,0.5116654,83915.0,83914.0,0.28635103]
[1743237985597,0.6262254,83915.0,83914.0,0.28635103]
[1743237985808,0.6579254,83915.0,83914.0,0.28635103]
[1743237986108,0.88451457,83915.0,83914.0,0.00148]
[1743237986297,0.1192282,83913.0,83912.0,0.00017879]
[1743237986497,0.2352282,83913.0,83912.0,0.00017879]
[1743237986897,0.2655282,83913.0,83912.0,0.00017879]
[1743237987410,0.9871282,83913.0,83912.0,0.00017879]
[1743237987595,0.8725682,83913.0,83912.0,0.00017879]
[1743237987796,0.9871282,83913.0,83912.0,0.00017879]
[1743237989204,1.22350818,83913.0,83912.0,0.00017879]
[1743237991408,0.50190818,83913.0,83912.0,0.00017879]
[1743237991610,1.22350818,83913.0,83912.0,0.00077879]
[1743237991804,1.22350818,83913.0,83912.0,0.00017879]
[1743237992708,1.22350818,83913.0,83904.0,0.1192402]
[1743237992709,0.1192396,83905.0,83904.0,0.1192402]
[1743237992909,0.4814796,83905.0,83904.0,0.1501402]
[1743237994010,0.1206796,83905.0,83904.0,0.1501402]
[1743237994404,0.1846796,83905.0,83904.0,0.1501402]
[1743237996208,0.1521796,83905.0,83904.0,0.1501402]
[1743237996406,0.1206796,83905.0,83904.0,0.1501402]
[1743237997709,0.116,83905.0,83904.0,0.2401402]
[1743237997912,0.2352396,83905.0,83904.0,0.2401402]
[1743237998119,0.1206796,83905.0,83904.0,0.2401402]
[1743237999418,0.00144,83905.0,83904.0,0.2401402]
[1743238000116,0.10694188,83911.0,83910.0,0.1192325]
[1743238000314,0.10838188,83911.0,83910.0,0.4006725]
[1743238002517,0.10838188,83911.0,83910.0,0.41265311]
[1743238002819,0.00144,83911.0,83910.0,0.41265311]
[1743238005310,0.00144,83911.0,83910.0,0.4006725]
[1743238005813,0.00144,83911.0,83910.0,0.1206725]
[1743238006009,0.00144,83911.0,83910.0,0.1507725]
[1743238006210,0.00017879,83913.0,83912.0,0.1192296]
[1743238006419,0.00017879,83913.0,83912.0,0.1198296]
[1743238006619,0.00169879,83913.0,83912.0,0.1198296]
[1743238006923,0.00169879,83913.0,83912.0,0.1829296]
[1743238010028,0.12092699,83913.0,83912.0,0.1829296]
[1743238010418,0.00169879,83913.0,83912.0,0.1829296]
[1743238010625,0.00017879,83913.0,83912.0,0.1829296]
[1743238010923,0.12084699,83913.0,83912.0,0.1829296]
[1743238011124,0.00169879,83913.0,83912.0,0.1829296]
[1743238013623,0.12092699,83913.0,83912.0,0.1829296]
[1743238016426,0.00169879,83913.0,83912.0,0.1829296]
[1743238016731,0.03229879,83913.0,83912.0,0.1829296]
[1743238018432,0.00169879,83913.0,83912.0,0.4129296]
[1743238018722,0.00017879,83913.0,83912.0,0.4129296]
[1743238020030,0.00161879,83913.0,83912.0,0.4129296]
[1743238020228,0.00017879,83913.0,83912.0,0.4129296]
[1743238023117,0.03177879,83913.0,83912.0,0.4129296]
[1743238023317,0.06461879,83913.0,83912.0,0.4129296]
[1743238024928,0.18384699,83913.0,83912.0,0.1829296]
[1743238026931,0.18384699,83913.0,83912.0,0.0006]
[1743238027232,0.54464699,83913.0,83912.0,0.0006]
[1743238027535,0.1192381,83906.0,83905.0,0.28487103]
[1743238027736,0.48159811,83906.0,83905.0,0.40555063]
[1743238028435,0.54459811,83906.0,83905.0,0.40555063]
[1743238030734,0.54459811,83906.0,83905.0,0.1206796]
[1743238031034,0.54459811,83906.0,83905.0,0.00144]
[1743238031230,0.1788734,83900.0,83899.0,0.1192409]
[1743238031435,0.1803134,83900.0,83899.0,0.1843809]
[1743238031733,0.2422134,83900.0,83899.0,0.1843809]
[1743238034730,0.2422134,83900.0,83899.0,0.2168809]
[1743238038229,0.00144,83900.0,83899.0,0.3468809]
[1743238038444,0.10709207,83906.0,83905.0,0.1192396]
[1743238038738,0.10813208,83906.0,83905.0,0.3598796]
[1743238039331,0.10813208,83906.0,83905.0,0.4248796]
[1743238039538,0.22737018,83906.0,83905.0,0.7856796]
[1743238043636,0.22737018,83906.0,83905.0,0.5456796]
[1743238043838,0.25997018,83906.0,83905.0,0.1848796]
[1743238044039,0.29077018,83906.0,83905.0,0.1198796]
[1743238045745,0.29077018,83906.0,83905.0,0.00064]
[1743238045943,0.2384981,83901.0,83900.0,0.1192396]
[1743238046248,0.2394981,83901.0,83900.0,0.1198396]
[1743238046846,0.6002981,83901.0,83900.0,0.0006]
[1743238047233,0.6002981,83901.0,83900.0,0.1192467]
[1743238047434,0.6002981,83901.0,83900.0,0.1198467]
[1743238047934,0.6002981,83901.0,83900.0,0.1519467]
[1743238048841,0.2394981,83901.0,83900.0,0.1824467]
[1743238054337,0.3026981,83901.0,83900.0,0.1824467]
[1743238057950,0.0606226,83901.0,83900.0,0.19405733]
[1743238058140,0.0606226,83901.0,83900.0,0.80485733]
[1743238058447,0.03668918,83906.0,83905.0,0.1192396]
[1743238058651,0.03668918,83906.0,83905.0,0.3792396]
[1743238059040,0.03744918,83906.0,83905.0,1.8798396]
[1743238059247,0.03668918,83906.0,83905.0,1.9413396]
[1743238059447,0.03668918,83906.0,83905.0,0.48039344]
[1743238059640,0.03668918,83906.0,83905.0,0.52816534]
[1743238059843,0.03668918,83906.0,83905.0,2.02816534]
[1743238060460,0.1192304,83912.0,83911.0,0.119231]
[1743238060754,0.1192304,83912.0,83911.0,0.399231]
[1743238061339,0.1502304,83912.0,83911.0,0.183831]
[1743238061567,0.1829304,83912.0,83911.0,0.0646]
[1743238061741,0.1829304,83912.0,83911.0,0.183831]
[1743238064251,0.1836104,83912.0,83911.0,0.151811]
[1743238065357,0.2981304,83912.0,83911.0,0.151811]
[1743238070049,0.1836104,83912.0,83911.0,0.151811]
[1743238070250,0.2981304,83912.0,83911.0,0.151811]
[1743238073657,0.1836104,83912.0,83911.0,0.151811]
[1743238073959,0.2981304,83912.0,83911.0,0.151811]
[1743238075755,0.31022321,83912.0,83911.0,0.151811]
[1743238078064,0.2981304,83912.0,83911.0,0.151811]
[1743238080559,0.2980904,83912.0,83911.0,0.151811]
[1743238082862,0.03168,83912.0,83911.0,0.151811]
[1743238083156,0.2343896,83912.0,83911.0,0.151811]
[1743238083365,0.1199096,83912.0,83911.0,0.151811]
[1743238083563,0.1199096,83912.0,83911.0,1.651811]
[1743238083758,0.1192296,83912.0,83911.0,0.151811]
[1743238083963,0.1199896,83912.0,83911.0,0.151811]
[1743238084267,0.1199896,83912.0,83911.0,0.512611]
[1743238084466,0.1192296,83912.0,83911.0,0.512611]
[1743238085955,0.1192296,83912.0,83911.0,0.151811]
[1743238086155,0.1200296,83912.0,83911.0,0.512611]
[1743238088756,0.0008,83912.0,83911.0,0.792611]
[1743238089064,0.00017879,83913.0,83912.0,0.1192296]
[1743238089258,0.00017879,83913.0,83912.0,0.1810296]
[1743238089459,0.00017879,83913.0,83912.0,0.2126296]
[1743238089765,0.00093879,83913.0,83912.0,0.2126296]
[1743238089968,0.00017879,83913.0,83912.0,0.2826296]
[1743238090966,0.00017879,83913.0,83912.0,1.7826296]
[1743238091965,0.00017879,83913.0,83912.0,1.83035475]
[1743238093672,0.00017879,83913.0,83912.0,0.33035475]
[1743238096576,0.00017879,83913.0,83912.0,0.2826296]
[1743238097078,0.00017879,83913.0,83912.0,0.33034043]
[1743238097478,0.00017879,83913.0,83912.0,0.2826296]
[1743238098182,0.00017879,83913.0,83912.0,0.6434296]
[1743238101970,0.00017879,83913.0,83912.0,0.2826296]
[1743238102470,0.00017879,83913.0,83912.0,0.6434296]
[1743238103084,0.00017879,83913.0,83912.0,0.2826296]
[1743238103283,0.00017879,83913.0,83912.0,0.6434296]
[1743238103777,0.00017879,83913.0,83912.0,0.2826296]
[1743238104083,0.00017879,83913.0,83912.0,0.6434296]
[1743238106084,0.00017879,83913.0,83912.0,0.68218186]
[1743238106383,0.00017879,83913.0,83912.0,2.22987098]
[1743238107983,0.00017879,83913.0,83912.0,2.19111872]
[1743238108395,9e-08,83913.0,83912.0,2.60031872]
[1743238108574,9e-08,83913.0,83912.0,2.79821872]
[1743238109292,9e-08,83913.0,83912.0,2.91269872]
[1743238109882,9e-08,83913.0,83912.0,2.95150145]
[1743238112087,9e-08,83913.0,83912.0,2.91269872]
[1743238112287,9e-08,83913.0,83912.0,3.25627466]
[1743238116882,9e-08,83913.0,83912.0,3.61707466]
[1743238121689,0.03190009,83913.0,83912.0,3.61707466]
[1743238123087,0.03190009,83913.0,83912.0,2.89547466]
[1743238123389,0.03190009,83913.0,83912.0,3.61707466]
[1743238123894,0.03190009,83913.0,83912.0,2.89547466]
[1743238124096,0.03190009,83913.0,83912.0,3.61707466]
[1743238124291,9e-08,83913.0,83912.0,3.61707466]
[1743238124483,0.0644,83930.0,83923.0,0.0596067]
[1743238124796,0.0644,83930.0,83929.0,0.4800055]
[1743238125090,0.0644,83930.0,83929.0,0.4806855]
[1743238127195,0.0644,83930.0,83929.0,0.49238583]
[1743238128683,0.2144041,83930.0,83929.0,0.49238583]
[1743238129794,0.2144041,83930.0,83929.0,0.13158583]
[1743238130691,0.2144041,83930.0,83929.0,0.1198855]
[1743238130892,0.2150841,83930.0,83929.0,0.1198855]
[1743238137295,0.2150841,83930.0,83929.0,0.1525855]
[1743238138497,0.2150841,83930.0,83929.0,0.1198855]
[1743238147610,0.2150841,83930.0,83929.0,0.1518855]
[1743238149908,0.06288,83930.0,83929.0,0.1518855]
[1743238150209,0.03208,83930.0,83929.0,0.1518855]
[1743238150610,0.03208,83930.0,83929.0,0.1822855]
[1743238150611,0.1512841,83930.0,83929.0,0.1822855]
[1743238151911,0.1512841,83930.0,83929.0,0.4122855]
[1743238153699,0.1512841,83930.0,83929.0,0.00068]
[1743238154103,0.1512841,83930.0,83928.0,0.24081167]
[1743238154104,0.1192055,83929.0,83928.0,0.24081167]
[1743238154312,0.30298551,83929.0,83928.0,0.24141167]
[1743238154521,0.33358551,83929.0,83928.0,0.24141167]
[1743238157812,0.51200012,83929.0,83928.0,0.0006]
[1743238158026,0.51200012,83929.0,83913.0,0.21316421]
[1743238158027,0.0596057,83925.0,83913.0,0.21316421]
[1743238158318,0.8408268,83914.0,83913.0,0.21316421]
[1743238158508,0.95638681,83914.0,83913.0,0.21428421]
[1743238158821,0.95638681,83914.0,83913.0,0.21316421]
[1743238159210,1.02994969,83914.0,83913.0,0.21316421]
[1743238160417,1.02994969,83914.0,83913.0,0.21380421]
[1743238161313,1.02994969,83914.0,83913.0,0.21316421]
[1743238161716,0.66914969,83914.0,83913.0,0.21316421]
[1743238162113,0.30834969,83914.0,83913.0,0.21316421]
[1743238162314,0.66914969,83914.0,83913.0,0.21384421]
[1743238162511,0.66914969,83914.0,83913.0,0.21316421]
[1743238163022,0.1192325,83910.0,83909.0,0.033]
[1743238163220,0.12035251,83910.0,83909.0,0.033]
[1743238163817,0.18165251,83910.0,83909.0,0.033]
[1743238165025,0.54245251,83910.0,83909.0,0.03368]
[1743238165235,0.54245251,83910.0,83909.0,0.033]
[1743238167014,0.51115251,83910.0,83909.0,0.033]
[1743238167926,0.59559251,83910.0,83909.0,0.033]
[1743238168118,0.59559251,83910.0,83909.0,0.03364]
[1743238168320,0.59559251,83910.0,83909.0,0.033]
[1743238169032,0.59559251,83910.0,83909.0,0.1522339]
[1743238169228,0.59559251,83910.0,83909.0,0.1528339]
[1743238172328,0.23479251,83910.0,83909.0,0.1528339]
[1743238172831,0.23479251,83910.0,83909.0,0.0336]
[1743238173031,0.23479251,83910.0,83909.0,0.033]
[1743238173519,0.26719251,83910.0,83909.0,0.033]
[1743238173830,0.29829251,83910.0,83909.0,0.033]
[1743238174320,0.29829251,83910.0,83905.0,0.00017879]
[1743238174321,0.1192381,83906.0,83905.0,0.00017879]
[1743238174631,0.4811981,83906.0,83905.0,0.00017879]
[1743238175329,0.5446981,83906.0,83905.0,0.00017879]
[1743238177229,0.5446981,83906.0,83905.0,0.00081879]
[1743238177525,0.5446981,83906.0,83905.0,0.00017879]
[1743238179434,0.5446981,83906.0,83905.0,0.00085879]
[1743238179624,0.5446981,83906.0,83905.0,0.00017879]
[1743238180027,0.5446981,83906.0,83905.0,0.00085879]
[1743238180223,0.5135981,83906.0,83905.0,0.03295879]
[1743238181830,0.5135981,83906.0,83905.0,0.03227879]
[1743238182037,0.5135981,83906.0,83905.0,0.03335879]
[1743238184841,0.1527981,83906.0,83905.0,0.03335879]
[1743238185042,0.5135981,83906.0,83905.0,0.03335879]
[1743238186437,0.5135981,83906.0,83905.0,0.03291879]
[1743238189541,0.5956781,83906.0,83905.0,0.03291879]
[1743238189731,0.5956781,83906.0,83905.0,0.03227879]
[1743238189931,0.5956781,83906.0,83905.0,0.03287879]
[1743238190643,0.6565781,83906.0,83905.0,0.03287879]
[1743238191343,0.79926173,83906.0,83905.0,0.03287879]
[1743238195239,0.6565781,83906.0,83905.0,0.03287879]
[1743238195733,0.5420981,83906.0,83905.0,0.03287879]
[1743238195932,0.6565781,83906.0,83905.0,0.03227879]
[1743238196731,0.6565781,83906.0,83905.0,0.03335879]
[1743238198842,0.2957781,83906.0,83905.0,0.03335879]
[1743238199045,0.6565781,83906.0,83905.0,0.03335879]
[1743238199246,0.2957781,83906.0,83905.0,0.03335879]
[1743238199440,0.6565781,83906.0,83905.0,0.03335879]
[1743238201143,0.6565781,83906.0,83905.0,0.03227879]
[1743238202848,0.6565781,83906.0,83905.0,0.03291879]
[1743238203345,0.6565781,83906.0,83905.0,0.03227879]
[1743238204935,0.6565781,83906.0,83899.0,0.0301]
[1743238204936,0.53734,83906.0,83885.0,0.3608]
[1743238205145,0.119258,83892.0,83891.0,0.0311]
[1743238205342,0.12033801,83892.0,83891.0,0.0311]
[1743238205747,0.18373801,83892.0,83891.0,0.0311]
[1743238206348,0.18373801,83892.0,83891.0,0.0317]
[1743238206852,0.19560753,83892.0,83891.0,0.0317]
[1743238207243,0.18373801,83892.0,83891.0,0.0317]
[1743238207643,0.18373801,83892.0,83891.0,0.1826595]
[1743238208354,0.12033801,83892.0,83891.0,0.1826595]
[1743238208652,0.00208001,83892.0,83891.0,0.4247516]
[1743238208848,0.12133801,83892.0,83891.0,0.4567516]
[1743238210253,0.12133801,83892.0,83891.0,0.4446595]
[1743238213650,0.00208001,83892.0,83891.0,0.4446595]
[1743238221065,0.001,83892.0,83891.0,0.4446595]
[1743238221660,0.00017879,83900.0,83899.0,0.1192481]
[1743238221967,0.0012588,83900.0,83899.0,0.1198881]
[1743238222357,0.0012588,83900.0,83899.0,0.2135881]
[1743238222665,0.1205055,83900.0,83899.0,0.2135881]
[1743238223366,0.1215055,83900.0,83899.0,0.2135881]
[1743238225066,0.0022588,83900.0,83899.0,0.2135881]
[1743238226270,0.1215055,83900.0,83899.0,0.2135881]
[1743238227668,0.1215055,83900.0,83899.0,0.03114]
[1743238227866,0.1215055,83900.0,83899.0,0.0305]
[1743238228070,0.1192495,83898.0,83897.0,0.1523509]
[1743238228371,0.12032951,83898.0,83897.0,0.1529509]
[1743238228871,0.18462951,83898.0,83897.0,0.1529509]
[1743238229262,0.18462951,83898.0,83897.0,0.1198509]
[1743238229461,0.1192509,83897.0,83896.0,0.0328]
[1743238229673,0.12033091,83897.0,83896.0,0.03348]
[1743238229865,0.18463091,83897.0,83896.0,0.0328]
[1743238231374,0.18463091,83897.0,83896.0,0.1520524]
[1743238231576,0.18463091,83897.0,83896.0,0.1526524]
[1743238232769,0.19639111,83897.0,83896.0,0.1526524]
[1743238236490,0.18463091,83897.0,83896.0,0.1526524]
[1743238236887,0.15153091,83897.0,83896.0,0.1847524]
[1743238252003,0.12033091,83897.0,83896.0,0.1847524]
[1743238253299,0.15243091,83897.0,83896.0,0.1847524]
[1743238261799,0.15243091,83897.0,83896.0,0.0006]
[1743238262005,0.1192623,83889.0,83888.0,0.0641]
[1743238262200,0.1192694,83884.0,83883.0,0.00017879]
[1743238262414,0.49325648,83884.0,83883.0,0.00077879]
[1743238262909,0.48114941,83884.0,83883.0,0.12004959]
[1743238263212,0.12034941,83884.0,83883.0,0.15274959]
[1743238263414,0.15124941,83884.0,83883.0,0.18464959]
[1743238264920,0.12034941,83884.0,83883.0,0.18564959]
[1743238265300,0.00108001,83884.0,83883.0,0.18564959]
[1743238265505,0.12034941,83884.0,83883.0,0.18564959]
[1743238265716,0.0596288,83893.0,83890.0,0.1192609]
[1743238265914,0.1200595,83891.0,83890.0,0.1199009]
[1743238266515,0.1200595,83891.0,83890.0,1.6199009]
[1743238266703,0.1512595,83891.0,83890.0,1.6860009]
[1743238270011,0.1520195,83891.0,83890.0,1.6860009]
[1743238270212,0.1520195,83891.0,83890.0,0.1528009]
[1743238287321,0.1200195,83891.0,83890.0,0.1528009]
[1743238287624,0.1531195,83891.0,83890.0,0.1528009]
[1743238295622,0.1531195,83891.0,83890.0,0.03354]
[1743238296118,0.1531195,83891.0,83890.0,0.00064]
[1743238296322,0.1531195,83891.0,83887.0,0.21340272]
[1743238296323,0.1192637,83888.0,83887.0,0.21340272]
[1743238296523,0.1200237,83888.0,83887.0,0.21404272]
[1743238297222,0.19139784,83888.0,83887.0,0.21404272]
[1743238298332,0.1192694,83884.0,83883.0,0.28485326]
[1743238298537,0.5945094,83884.0,83883.0,0.28485326]
[1743238298833,0.5955094,83884.0,83883.0,0.28549326]
[1743238299028,0.60398354,83884.0,83883.0,0.28549326]
[1743238299228,0.66618354,83884.0,83883.0,0.28549326]
[1743238300029,0.6597094,83884.0,83883.0,0.28549326]
[1743238300231,0.6607094,83884.0,83883.0,0.00081879]
[1743238300431,0.6607094,83884.0,83883.0,0.00017879]
[1743238300838,0.5462694,83884.0,83883.0,0.00017879]
[1743238301135,0.6607094,83884.0,83883.0,0.00017879]
[1743238301828,0.6607094,83884.0,83883.0,0.00077879]
[1743238302539,0.6607094,83884.0,83883.0,0.00017879]
[1743238304629,0.2999094,83884.0,83883.0,0.00017879]
[1743238304830,0.6607094,83884.0,83883.0,0.00077879]
[1743238305037,0.6607094,83884.0,83883.0,0.00017879]
[1743238305937,0.5985094,83884.0,83883.0,0.11944959]
[1743238306143,0.4840694,83884.0,83883.0,0.11944959]
[1743238306333,0.5985094,83884.0,83883.0,0.00017879]
[1743238306736,0.6295094,83884.0,83883.0,0.00017879]
[1743238307239,0.2687094,83884.0,83883.0,0.00017879]
[1743238307441,0.6295094,83884.0,83883.0,0.00113879]
[1743238307737,0.6295094,83884.0,83883.0,0.00017879]
[1743238310144,0.6295094,83884.0,83883.0,0.11944959]
[1743238310443,0.6295094,83884.0,83883.0,0.09665879]
[1743238311030,0.6295094,83884.0,83883.0,0.09597879]
[1743238311647,0.6295094,83884.0,83883.0,0.06297879]
[1743238311945,0.6295094,83884.0,83883.0,0.00017879]
[1743238312445,0.1192822,83875.0,83874.0,0.0316]
[1743238312634,0.59556221,83875.0,83874.0,0.1508836]
[1743238312840,0.59556221,83875.0,83874.0,0.1518436]
[1743238313238,0.65926221,83875.0,83874.0,0.1518436]
[1743238313645,0.65926221,83875.0,83874.0,0.1528436]
[1743238314951,0.65926221,83875.0,83874.0,0.03356]
[1743238315141,0.65926221,83875.0,83874.0,0.0326]
[1743238315342,0.65926221,83875.0,83874.0,0.03356]
[1743238315544,0.65926221,83875.0,83874.0,0.1528436]
[1743238316150,0.65926221,83875.0,83874.0,0.03356]
[1743238316345,0.65926221,83875.0,83874.0,0.1518836]
[1743238317443,0.67090318,83875.0,83874.0,0.1524836]
[1743238318055,0.67090318,83875.0,83874.0,0.0332]
[1743238318241,0.67090318,83875.0,83874.0,0.0326]
[1743238318551,0.67090318,83875.0,83867.0,0.00014763]
[1743238318552,0.1192922,83868.0,83867.0,0.00014763]
[1743238318759,0.48105221,83868.0,83867.0,0.00074763]
[1743238318944,0.48105221,83868.0,83867.0,0.00014763]
[1743238319445,0.54415221,83868.0,83867.0,0.00014763]
[1743238319648,0.54415221,83868.0,83867.0,0.00110763]
[1743238320147,0.54415221,83868.0,83867.0,0.03450763]
[1743238321950,0.54415221,83868.0,83867.0,0.03650763]
[1743238322251,0.54415221,83868.0,83867.0,0.03554763]
[1743238323652,0.54415221,83868.0,83867.0,0.03614763]